fUSD/lending_fUSD_20250216
["ID","MTS","AMOUNT","RATE_DAILY","PERIOD"]
[353297164,1739742660870,-1277.56,0.00011205,2]
[353297165,1739742660880,-659.07,0.00011205,2]
[353297166,1739742660890,-500.0,0.00011205,2]
[353297167,1739742660899,-676.16,0.00011205,2]
[353297168,1739742660909,-500.0,0.00011205,2]
[353297169,1739742660919,-616.55,0.00011205,2]
[353297170,1739742660929,-500.0,0.00011205,2]
[353297171,1739742660939,-500.0,0.00011205,2]
[353297172,1739742660949,-500.0,0.00011205,2]
[353297173,1739742660959,-500.0,0.00011205,2]
[353297174,1739742660968,-662.98,0.00011205,2]
[353297175,1739742660978,-681.63,0.00011205,2]
[353297176,1739742660988,-500.0,0.00011205,2]
[353297177,1739742660997,-768.53,0.00011205,2]
[353297178,1739742661007,-1928.42,0.00011205,2]
[353297179,1739742661016,-1472.35,0.00011205,2]
[353297180,1739742661026,-500.0,0.00011205,2]
[353297181,1739742661035,-500.0,0.00011205,2]
[353297182,1739742661044,-1085.08,0.00011205,2]
[353297183,1739742661054,-1097.37,0.00011205,2]
[353297184,1739742661064,-1532.75,0.00011205,2]
[353297185,1739742661074,-1575.69,0.00011205,2]
[353297186,1739742661083,-800.35,0.00011205,2]
[353297187,1739742661096,-2696.32,0.00011205,2]
[353297188,1739742661106,-1998.61,0.00011205,2]
[353297189,1739742661115,-468.82677704,0.00011205,2]
[353297190,1739742661125,-601.4,0.00011205,2]
[353297191,1739742661134,-355.43558889,0.00011205,2]
[353297192,1739742661143,-846.39,0.00011205,2]
[353297193,1739742661153,-500.0,0.00011205,2]
[353297194,1739742661162,-1249.29,0.00011205,2]
[353297195,1739742661173,-500.0,0.00011205,2]
[353297196,1739742661183,-1062.89,0.00011205,2]
[353297197,1739742661193,-500.0,0.00011205,2]
[353297198,1739742661203,-500.0,0.00011205,2]
[353297199,1739742661213,-2010.66,0.00011205,2]
[353297200,1739742661222,-1292.55,0.00011205,2]
[353297201,1739742661232,-500.0,0.00011205,2]
[353297202,1739742661241,-1786.66,0.00011205,2]
[353297203,1739742661251,-500.0,0.00011205,2]
[353297204,1739742661260,-718.28,0.00011205,2]
[353297205,1739742661269,-500.0,0.00011205,2]
[353297206,1739742661279,-500.0,0.00011205,2]
[353297207,1739742661288,-500.0,0.00011205,2]
[353297208,1739742661297,-505.9,0.00011205,2]
[353297209,1739742661307,-500.0,0.00011205,2]
[353297210,1739742661317,-2309.43,0.00011205,2]
[353297211,1739742661327,-500.0,0.00011205,2]
[353297212,1739742661337,-500.0,0.00011205,2]
[353297213,1739742661347,-500.0,0.00011205,2]
[353297214,1739742661357,-841.82,0.00011205,2]
[353297215,1739742661367,-500.0,0.00011205,2]
[353297216,1739742661377,-1004.9,0.00011205,2]
[353297217,1739742661386,-500.0,0.00011205,2]
[353297218,1739742661395,-1051.25,0.00011205,2]
[353297219,1739742661405,-500.0,0.00011205,2]
[353297220,1739742661415,-500.0,0.00011205,2]
[353297221,1739742661424,-1465.9,0.00011205,2]
[353297222,1739742661434,-500.0,0.00011205,2]
[353297223,1739742661444,-1681.66,0.00011205,2]
[353297224,1739742661454,-500.0,0.00011205,2]
[353297225,1739742661463,-918.07,0.00011205,2]
[353297226,1739742661472,-1609.77,0.00011205,2]
[353297227,1739742661482,-500.0,0.00011205,2]
[353297228,1739742661491,-500.0,0.00011205,2]
[353297229,1739742661500,-1735.61,0.00011205,2]
[353297230,1739742661510,-500.0,0.00011205,2]
[353297231,1739742661519,-500.0,0.00011205,2]
[353297232,1739742661530,-2197.25,0.00011205,2]
[353297233,1739742661540,-500.0,0.00011205,2]
[353297234,1739742661549,-513.81,0.00011205,2]
[353297235,1739742661559,-500.0,0.00011205,2]
[353297236,1739742661568,-500.0,0.00011205,2]
[353297237,1739742661578,-500.0,0.00011205,2]
[353297238,1739742661588,-795.13,0.00011205,2]
[353297239,1739742661597,-685.8,0.00011205,2]
[353297240,1739742661606,-1539.81,0.00011205,2]
[353297241,1739742661616,-4849.07,0.00011205,2]
[353297242,1739742661626,-500.0,0.00011205,2]
[353297243,1739742661635,-500.0,0.00011205,2]
[353297244,1739742661645,-500.0,0.00011205,2]
[353297245,1739742661655,-500.0,0.00011205,2]
[353297246,1739742661664,-500.0,0.00011205,2]
[353297247,1739742661674,-500.0,0.00011205,2]
[353297248,1739742661683,-500.0,0.00011205,2]
[353297249,1739742661693,-500.0,0.00011205,2]
[353297250,1739742661702,-500.0,0.00011205,2]
[353297251,1739742661711,-500.0,0.00011205,2]
[353297252,1739742661720,-1017.77578108,0.00011223,2]
[353297253,1739742661730,-1200.0,0.00011232,2]
[353297254,1739742661740,-1200.0,0.00011232,2]
[353297255,1739742661749,-1200.0,0.00011232,2]
[353297256,1739742661758,-1200.0,0.00011232,2]
[353297257,1739742661768,-500.0,0.00011273,2]
[353297258,1739742661777,-151.0,0.00011273,2]
[353297259,1739742661787,-3625.9911296,0.00011278,2]
[353297260,1739742661796,-8065.1068346,0.00011278,2]
[353297261,1739742661805,-819.7275525,0.00011278,2]
[353297262,1739742661815,-1471.49,0.00011286,2]
[353297263,1739742661824,-922.85,0.00011286,2]
[353297264,1739742661833,-1666.95,0.00011286,2]
[353297265,1739742661843,-500.0,0.00011286,2]
[353297266,1739742661853,-1208.65,0.00011286,2]
[353297267,1739742661862,-1605.62,0.00011286,2]
[353297268,1739742661872,-2077.86,0.00011286,2]
[353297269,1739742661882,-1142.3,0.00011286,2]
[353297270,1739742661891,-1876.41,0.00011286,2]
[353297271,1739742661901,-553.47,0.00011286,2]
[353297272,1739742661910,-1626.88,0.00011286,2]
[353297273,1739742661920,-1146.64,0.00011286,2]
[353297274,1739742661930,-500.0,0.00011287,2]
[353297275,1739742661939,-200.0,0.00011287,2]
[353297276,1739742661948,-500.0,0.00011287,2]
[353297277,1739742661958,-500.0,0.00011287,2]
[353297278,1739742661967,-500.0,0.00011287,2]
[353297279,1739742661976,-500.0,0.00011287,2]
[353297280,1739742661986,-500.0,0.00011287,2]
[353297281,1739742661996,-500.0,0.00011287,2]
[353297282,1739742662005,-500.0,0.00011287,2]
[353297283,1739742662015,-1200.0,0.00011287,2]
[353297284,1739742662027,-500.0,0.00011287,2]
[353297285,1739742662037,-500.0,0.00011287,2]
[353297286,1739742662047,-500.0,0.00011287,2]
[353297287,1739742662058,-500.0,0.00011287,2]
[353297288,1739742662067,-500.0,0.00011287,2]
[353297289,1739742662078,-500.0,0.00011287,2]
[353297290,1739742662091,-500.0,0.00011287,2]
[353297291,1739742662101,-500.0,0.00011287,2]
[353297292,1739742662110,-500.0,0.00011287,2]
[353297293,1739742662119,-500.0,0.00011287,2]
[353297294,1739742662129,-500.0,0.00011287,2]
[353297295,1739742662138,-500.0,0.00011287,2]
[353297296,1739742662148,-500.0,0.00011287,2]
[353297297,1739742662157,-500.0,0.00011287,2]
[353297298,1739742662167,-500.0,0.00011287,2]
[353297299,1739742662177,-500.0,0.00011287,2]
[353297300,1739742662187,-500.0,0.00011287,2]
[353297301,1739742662196,-500.0,0.00011287,2]
[353297302,1739742662205,-500.0,0.00011287,2]
[353297303,1739742662214,-500.0,0.00011287,2]
[353297304,1739742662223,-500.0,0.00011287,2]
[353297305,1739742662232,-500.0,0.00011287,2]
[353297306,1739742662241,-500.0,0.00011287,2]
[353297307,1739742662251,-500.0,0.00011287,2]
[353297308,1739742662261,-500.0,0.00011287,2]
[353297309,1739742662270,-500.0,0.00011287,2]
[353297310,1739742662279,-500.0,0.00011287,2]
[353297311,1739742662288,-500.0,0.00011287,2]
[353297312,1739742662299,-500.0,0.00011287,2]
[353297313,1739742662310,-500.0,0.00011287,2]
[353297314,1739742662321,-500.0,0.00011287,2]
[353297315,1739742662330,-500.0,0.00011287,2]
[353297316,1739742662340,-500.0,0.00011287,2]
[353297317,1739742662350,-500.0,0.00011287,2]
[353297318,1739742662360,-500.0,0.00011287,2]
[353297319,1739742662369,-500.0,0.00011287,2]
[353297320,1739742662378,-500.0,0.00011287,2]
[353297321,1739742662388,-500.0,0.00011287,2]
[353297322,1739742662397,-500.0,0.00011287,2]
[353297323,1739742662407,-500.0,0.00011287,2]
[353297324,1739742662417,-500.0,0.00011287,2]
[353297325,1739742662427,-500.0,0.00011287,2]
[353297326,1739742662436,-500.0,0.00011287,2]
[353297327,1739742662446,-588.54,0.00011287,2]
[353297328,1739742662455,-500.0,0.00011287,2]
[353297329,1739742662465,-527.23,0.00011287,2]
[353297330,1739742662475,-500.0,0.00011287,2]
[353297331,1739742662485,-500.0,0.00011287,2]
[353297332,1739742662494,-500.0,0.00011287,2]
[353297333,1739742662503,-500.0,0.00011287,2]
[353297334,1739742662513,-500.0,0.00011287,2]
[353297335,1739742662522,-600.0,0.00011287,2]
[353297336,1739742662532,-500.0,0.00011287,2]
[353297337,1739742662542,-500.0,0.00011287,2]
[353297338,1739742662553,-500.0,0.00011287,2]
[353297339,1739742662562,-773.53,0.00011287,2]
[353297340,1739742662571,-500.0,0.00011287,2]
[353297341,1739742662581,-629.01,0.00011287,2]
[353297342,1739742662590,-500.0,0.00011287,2]
[353297343,1739742662759,-500.0,0.00011287,2]
[353297344,1739742662768,-500.0,0.00011287,2]
[353297345,1739742662778,-545.39,0.00011287,2]
[353297346,1739742662788,-581.66,0.00011287,2]
[353297347,1739742662798,-500.0,0.00011287,2]
[353297348,1739742662808,-525.55,0.00011287,2]
[353297349,1739742662817,-500.0,0.00011287,2]
[353297350,1739742662826,-500.0,0.00011287,2]
[353297351,1739742662837,-500.0,0.00011287,2]
[353297352,1739742662846,-323.76601051,0.00011287,2]
[353297353,1739742662856,-500.0,0.00011287,2]
[353297354,1739742662865,-804.84,0.00011287,2]
[353297355,1739742662876,-500.0,0.00011287,2]
[353297356,1739742662885,-396.91027126,0.00011287,2]
[353297357,1739742662896,-256.56,0.00011287,2]
[353297358,1739742662906,-500.0,0.00011287,2]
[353297359,1739742662916,-982.12,0.00011287,2]
[353297360,1739742662926,-500.0,0.00011287,2]
[353297361,1739742662936,-500.0,0.00011287,2]
[353297362,1739742662945,-500.0,0.00011287,2]
[353297363,1739742662955,-409.84049513,0.00011287,2]
[353297364,1739742662965,-500.0,0.00011287,2]
[353297365,1739742662975,-500.0,0.00011287,2]
[353297366,1739742662985,-500.0,0.00011287,2]
[353297367,1739742662995,-500.0,0.00011287,2]
[353297368,1739742663004,-565.07,0.00011287,2]
[353297369,1739742663014,-500.0,0.00011287,2]
[353297370,1739742663023,-1208.65,0.00011287,2]
[353297371,1739742663032,-500.0,0.00011287,2]
[353297372,1739742663042,-500.0,0.00011287,2]
[353297373,1739742663052,-500.0,0.00011287,2]
[353297374,1739742663062,-855.1,0.00011287,2]
[353297375,1739742663071,-597.45,0.00011287,2]
[353297376,1739742663081,-500.0,0.00011287,2]
[353297377,1739742663092,-1108.48,0.00011287,2]
[353297378,1739742663102,-570.47,0.00011287,2]
[353297379,1739742663112,-500.0,0.00011287,2]
[353297380,1739742663121,-500.0,0.00011287,2]
[353297381,1739742663131,-1106.27,0.00011287,2]
[353297382,1739742663140,-500.0,0.00011287,2]
[353297383,1739742663150,-500.0,0.00011287,2]
[353297384,1739742663159,-500.0,0.00011287,2]
[353297385,1739742663169,-500.0,0.00011287,2]
[353297386,1739742663180,-877.71,0.00011287,2]
[353297387,1739742663190,-500.0,0.00011287,2]
[353297388,1739742663199,-500.0,0.00011287,2]
[353297389,1739742663208,-726.09,0.00011287,2]
[353297390,1739742663218,-541.85,0.00011287,2]
[353297391,1739742663227,-500.0,0.00011287,2]
[353297392,1739742663236,-1071.49,0.00011287,2]
[353297393,1739742663246,-500.0,0.00011287,2]
[353297394,1739742663256,-749.73,0.00011287,2]
[353297395,1739742663266,-767.54,0.00011287,2]
[353297396,1739742663275,-726.53,0.00011287,2]
[353297397,1739742663285,-500.0,0.00011287,2]
[353297398,1739742663294,-500.0,0.00011287,2]
[353297399,1739742663304,-500.0,0.00011287,2]
[353297400,1739742663314,-684.820222,0.00011287,2]
[353297401,1739742663323,-580.47,0.00011287,2]
[353297402,1739742663333,-587.22,0.00011287,2]
[353297403,1739742663343,-500.0,0.00011287,2]
[353297404,1739742663352,-500.0,0.00011287,2]
[353297405,1739742663361,-500.0,0.00011287,2]
[353297406,1739742663371,-500.0,0.00011287,2]
[353297407,1739742663380,-500.0,0.00011287,2]
[353297408,1739742663390,-987.579306,0.00011287,2]
[353297409,1739742663400,-500.0,0.00011287,2]
[353297410,1739742663410,-500.0,0.00011287,2]
[353297411,1739742663420,-500.0,0.00011287,2]
[353297412,1739742663430,-500.0,0.00011287,2]
[353297413,1739742663439,-500.0,0.00011287,2]
[353297414,1739742663448,-500.0,0.00011287,2]
[353297415,1739742663458,-500.0,0.00011287,2]
[353297416,1739742663467,-500.0,0.00011287,2]
[353297417,1739742663477,-164.68488734,0.00011287,2]
[353297418,1739742663486,-500.0,0.00011287,2]
[353297419,1739742663496,-532.63,0.00011287,2]
[353297420,1739742663506,-518.7,0.00011287,2]
[353297421,1739742663515,-500.0,0.00011287,2]
[353297422,1739742663525,-500.0,0.00011287,2]
[353297423,1739742663534,-508.32,0.00011287,2]
[353297424,1739742663543,-500.0,0.00011287,2]
[353297425,1739742663553,-500.0,0.00011287,2]
[353297426,1739742663562,-1320.12,0.00011287,2]
[353297427,1739742663572,-500.0,0.00011287,2]
[353297428,1739742663582,-500.0,0.00011287,2]
[353297429,1739742663592,-610.47,0.00011287,2]
[353297430,1739742663602,-500.0,0.00011287,2]
[353297431,1739742663611,-500.0,0.00011287,2]
[353297432,1739742663621,-500.0,0.00011287,2]
[353297433,1739742663631,-603.88,0.00011287,2]
[353297434,1739742663640,-500.0,0.00011287,2]
[353297435,1739742663649,-930.63,0.00011287,2]
[353297436,1739742663659,-836.2,0.00011287,2]
[353297437,1739742663668,-500.0,0.00011287,2]
[353297438,1739742663677,-500.0,0.00011287,2]
[353297439,1739742663687,-712.78,0.00011287,2]
[353297440,1739742663696,-500.0,0.00011287,2]
[353297441,1739742663706,-500.0,0.00011287,2]
[353297442,1739742663715,-500.0,0.00011287,2]
[353297443,1739742663724,-500.0,0.00011287,2]
[353297444,1739742663734,-500.0,0.00011287,2]
[353297445,1739742663743,-500.0,0.00011287,2]
[353297446,1739742663753,-999.98,0.00011287,2]
[353297447,1739742663762,-843.76,0.00011287,2]
[353297448,1739742663772,-500.0,0.00011287,2]
[353297449,1739742663781,-863.25,0.00011287,2]
[353297450,1739742663791,-1040.19,0.00011287,2]
[353297451,1739742663800,-500.0,0.00011287,2]
[353297452,1739742663810,-841.54,0.00011287,2]
[353297453,1739742663819,-500.0,0.00011287,2]
[353297454,1739742663828,-500.0,0.00011287,2]
[353297455,1739742663838,-565.47,0.00011287,2]
[353297456,1739742663848,-854.5,0.00011287,2]
[353297457,1739742663857,-500.0,0.00011287,2]
[353297458,1739742663867,-500.0,0.00011287,2]
[353297459,1739742663876,-500.0,0.00011287,2]
[353297460,1739742663885,-839.28,0.00011287,2]
[353297461,1739742663895,-500.0,0.00011287,2]
[353297462,1739742663904,-500.0,0.00011287,2]
[353297463,1739742663914,-500.0,0.00011287,2]
[353297464,1739742663923,-1102.11,0.00011287,2]
[353297465,1739742663932,-500.0,0.00011287,2]
[353297466,1739742663942,-500.0,0.00011287,2]
[353297467,1739742663952,-1120.48,0.00011287,2]
[353297468,1739742663961,-171.750362,0.00011287,2]
[353297469,1739742663970,-500.0,0.00011287,2]
[353297470,1739742663980,-666.2,0.00011287,2]
[353297471,1739742663989,-500.0,0.00011287,2]
[353297472,1739742663999,-500.0,0.00011287,2]
[353297473,1739742664009,-701.22,0.00011287,2]
[353297474,1739742664019,-500.0,0.00011287,2]
[353297475,1739742664028,-500.0,0.00011287,2]
[353297476,1739742664038,-500.0,0.00011287,2]
[353297477,1739742664048,-500.0,0.00011287,2]
[353297478,1739742664057,-500.0,0.00011287,2]
[353297479,1739742664067,-500.0,0.00011287,2]
[353297480,1739742664076,-500.0,0.00011287,2]
[353297481,1739742664086,-500.0,0.00011287,2]
[353297482,1739742664102,-500.0,0.00011287,2]
[353297483,1739742664111,-500.0,0.00011287,2]
[353297484,1739742664121,-730.12,0.00011287,2]
[353297485,1739742664131,-500.0,0.00011287,2]
[353297486,1739742664140,-500.0,0.00011287,2]
[353297487,1739742664150,-500.0,0.00011287,2]
[353297488,1739742664159,-500.0,0.00011287,2]
[353297489,1739742664169,-691.18,0.00011287,2]
[353297490,1739742664179,-959.53,0.00011287,2]
[353297491,1739742664188,-500.0,0.00011287,2]
[353297492,1739742664199,-500.0,0.00011287,2]
[353297493,1739742664208,-1279.74,0.00011287,2]
[353297494,1739742664217,-500.0,0.00011287,2]
[353297495,1739742664227,-500.0,0.00011287,2]
[353297496,1739742664237,-500.0,0.00011287,2]
[353297497,1739742664246,-500.0,0.00011287,2]
[353297498,1739742664256,-1064.34,0.00011287,2]
[353297499,1739742664265,-500.0,0.00011287,2]
[353297500,1739742664275,-684.81,0.00011287,2]
[353297501,1739742664284,-500.0,0.00011287,2]
[353297502,1739742664294,-277.82219941,0.00011287,2]
[353297503,1739742664304,-500.0,0.00011287,2]
[353297504,1739742664314,-507.17942882,0.00011287,2]
[353297505,1739742664324,-500.0,0.00011287,2]
[353297506,1739742664334,-948.86,0.00011287,2]
[353297507,1739742664344,-180.48893748,0.00011287,2]
[353297508,1739742664353,-500.0,0.00011287,2]
[353297509,1739742664363,-500.0,0.00011287,2]
[353297510,1739742664372,-1205.36,0.00011287,2]
[353297511,1739742664382,-500.0,0.00011287,2]
[353297512,1739742664393,-2644.03,0.00011287,2]
[353297513,1739742664405,-845.2,0.00011287,2]
[353297514,1739742664415,-500.0,0.00011287,2]
[353297515,1739742664425,-1299.48,0.00011287,2]
[353297516,1739742664435,-500.0,0.00011287,2]
[353297517,1739742664445,-2569.33,0.00011287,2]
[353297518,1739742664454,-568.96,0.00011287,2]
[353297519,1739742664464,-500.0,0.00011287,2]
[353297520,1739742664473,-500.0,0.00011287,2]
[353297521,1739742664485,-500.0,0.00011287,2]
[353297522,1739742664494,-1215.7,0.00011287,2]
[353297523,1739742664504,-500.0,0.00011287,2]
[353297524,1739742664514,-500.0,0.00011287,2]
[353297525,1739742664523,-597.66,0.00011287,2]
[353297526,1739742664532,-500.0,0.00011287,2]
[353297527,1739742664543,-500.0,0.00011287,2]
[353297528,1739742664552,-500.0,0.00011287,2]
[353297529,1739742664562,-500.0,0.00011287,2]
[353297530,1739742664572,-500.0,0.00011287,2]
[353297531,1739742664582,-2101.67,0.00011287,2]
[353297532,1739742664592,-664.4,0.00011287,2]
[353297533,1739742664601,-1077.31,0.00011287,2]
[353297534,1739742664611,-500.0,0.00011287,2]
[353297535,1739742664620,-500.0,0.00011287,2]
[353297536,1739742664630,-935.69,0.00011287,2]
[353297537,1739742664640,-661.83,0.00011287,2]
[353297538,1739742664651,-1106.58,0.00011287,2]
[353297539,1739742664661,-500.0,0.00011287,2]
[353297540,1739742664670,-1835.67,0.00011287,2]
[353297541,1739742664681,-500.0,0.00011287,2]
[353297542,1739742664691,-2255.62,0.00011287,2]
[353297543,1739742664700,-730.5,0.00011287,2]
[353297544,1739742664710,-500.0,0.00011287,2]
[353297545,1739742664720,-770.15,0.00011287,2]
[353297546,1739742664729,-1638.39,0.00011287,2]
[353297547,1739742664738,-500.0,0.00011287,2]
[353297548,1739742664748,-578.74,0.00011287,2]
[353297549,1739742664757,-1003.64,0.00011287,2]
[353297550,1739742664767,-500.0,0.00011287,2]
[353297551,1739742664776,-500.0,0.00011287,2]
[353297552,1739742664787,-1650.35,0.00011287,2]
[353297553,1739742664797,-791.01,0.00011287,2]
[353297554,1739742664807,-1438.47,0.00011287,2]
[353297555,1739742664816,-500.0,0.00011287,2]
[353297556,1739742664826,-500.0,0.00011287,2]
[353297557,1739742664836,-500.0,0.00011287,2]
[353297558,1739742664847,-500.0,0.00011287,2]
[353297559,1739742664857,-500.0,0.00011287,2]
[353297560,1739742664867,-602.2191139,0.00011287,2]
[353297561,1739742664878,-1575.58,0.00011287,2]
[353297562,1739742664888,-1536.64,0.00011287,2]
[353297563,1739742664898,-500.0,0.00011287,2]
[353297564,1739742664909,-687.89,0.00011287,2]
[353297565,1739742664919,-1036.62,0.00011287,2]
[353297566,1739742664929,-810.05,0.00011287,2]
[353297567,1739742664939,-500.0,0.00011287,2]
[353297568,1739742664949,-1605.64,0.00011287,2]
[353297569,1739742664958,-500.0,0.00011287,2]
[353297570,1739742664968,-500.0,0.00011287,2]
[353297571,1739742664978,-1465.61,0.00011287,2]
[353297572,1739742664988,-500.0,0.00011287,2]
[353297573,1739742664999,-500.0,0.00011287,2]
[353297574,1739742665009,-1869.66,0.00011287,2]
[353297575,1739742665018,-500.0,0.00011287,2]
[353297576,1739742665029,-2363.97,0.00011287,2]
[353297577,1739742665040,-946.33,0.00011287,2]
[353297578,1739742665051,-898.03,0.00011287,2]
[353297579,1739742665060,-500.0,0.00011287,2]
[353297580,1739742665069,-500.0,0.00011287,2]
[353297581,1739742665078,-790.18,0.00011287,2]
[353297582,1739742665090,-5281.57,0.00011287,2]
[353297583,1739742665102,-500.0,0.00011287,2]
[353297584,1739742665112,-1497.17,0.00011287,2]
[353297585,1739742665121,-500.0,0.00011287,2]
[353297586,1739742665131,-955.64,0.00011287,2]
[353297587,1739742665142,-1351.49,0.00011287,2]
[353297588,1739742665151,-1462.67,0.00011287,2]
[353297589,1739742665211,-522.19,0.00011287,2]
[353297590,1739742665222,-500.0,0.00011287,2]
[353297591,1739742665231,-1393.39,0.00011287,2]
[353297592,1739742665240,-918.71,0.00011287,2]
[353297593,1739742665249,-1445.68,0.00011287,2]
[353297594,1739742665258,-500.0,0.00011287,2]
[353297595,1739742665267,-500.0,0.00011287,2]
[353297596,1739742665276,-1262.94,0.00011287,2]
[353297597,1739742665285,-1096.78,0.00011287,2]
[353297598,1739742665295,-866.87,0.00011287,2]
[353297599,1739742665304,-500.0,0.00011287,2]
[353297600,1739742665314,-921.5,0.00011287,2]
[353297601,1739742665323,-500.0,0.00011287,2]
[353297602,1739742665332,-1703.44,0.00011287,2]
[353297603,1739742665341,-817.33,0.00011287,2]
[353297604,1739742665351,-1765.29,0.00011287,2]
[353297605,1739742665362,-375.07565421,0.00011287,2]
[353297606,1739742665371,-563.98,0.00011287,2]
[353297607,1739742665381,-500.0,0.00011287,2]
[353297608,1739742665391,-500.0,0.00011287,2]
[353297609,1739742665400,-1077.46,0.00011287,2]
[353297610,1739742665411,-500.0,0.00011287,2]
[353297611,1739742665421,-797.83,0.00011287,2]
[353297612,1739742665431,-2045.9,0.00011287,2]
[353297613,1739742665441,-500.0,0.00011287,2]
[353297614,1739742665450,-1027.79,0.00011287,2]
[353297615,1739742665460,-562.48,0.00011287,2]
[353297616,1739742665470,-919.02,0.00011287,2]
[353297617,1739742665478,-2070.46,0.00011287,2]
[353297618,1739742665488,-500.0,0.00011287,2]
[353297619,1739742665497,-500.0,0.00011287,2]
[353297620,1739742665506,-1269.5,0.00011287,2]
[353297621,1739742665516,-1764.9,0.00011287,2]
[353297622,1739742665525,-1920.38,0.00011287,2]
[353297623,1739742665534,-594.15,0.00011287,2]
[353297624,1739742665543,-500.0,0.00011287,2]
[353297625,1739742665552,-1514.45,0.00011287,2]
[353297626,1739742665562,-362.22197121,0.00011287,2]
[353297627,1739742665571,-500.0,0.00011287,2]
[353297628,1739742665580,-3942.71,0.00011287,2]
[353297629,1739742665590,-500.0,0.00011287,2]
[353297630,1739742665599,-500.0,0.00011287,2]
[353297631,1739742665609,-500.0,0.00011287,2]
[353297632,1739742665619,-500.0,0.00011287,2]
[353297633,1739742665629,-518.38,0.00011287,2]
[353297634,1739742665638,-2006.59,0.00011287,2]
[353297635,1739742665647,-500.0,0.00011287,2]
[353297636,1739742665656,-739.81,0.00011287,2]
[353297637,1739742665666,-500.0,0.00011287,2]
[353297638,1739742665675,-1277.56,0.00011287,2]
[353297639,1739742665685,-659.07,0.00011287,2]
[353297640,1739742665694,-500.0,0.00011287,2]
[353297641,1739742665705,-676.16,0.00011287,2]
[353297642,1739742665714,-500.0,0.00011287,2]
[353297643,1739742665724,-616.55,0.00011287,2]
[353297644,1739742665734,-500.0,0.00011287,2]
[353297645,1739742665744,-500.0,0.00011287,2]
[353297646,1739742665754,-500.0,0.00011287,2]
[353297647,1739742665765,-217.85214529,0.00011287,2]
[353297648,1739742665775,-662.98,0.00011287,2]
[353297649,1739742665784,-681.63,0.00011287,2]
[353297650,1739742665793,-500.0,0.00011287,2]
[353297651,1739742665803,-1928.42,0.00011287,2]
[353297652,1739742665812,-768.53,0.00011287,2]
[353297653,1739742665822,-1472.35,0.00011287,2]
[353297654,1739742665832,-500.0,0.00011287,2]
[353297655,1739742665841,-500.0,0.00011287,2]
[353297656,1739742665851,-1085.08,0.00011287,2]
[353297657,1739742665860,-1097.37,0.00011287,2]
[353297658,1739742665870,-1532.75,0.00011287,2]
[353297659,1739742665880,-1575.69,0.00011287,2]
[353297660,1739742665890,-800.35,0.00011287,2]
[353297661,1739742665899,-2696.32,0.00011287,2]
[353297662,1739742665909,-1998.61,0.00011287,2]
[353297663,1739742665920,-601.4,0.00011287,2]